[Event "Israeli Women Championship 2022"]
[Site "Yosiah Arad"]
[Date "2022.12.06"]
[Round "2.1"]
[White "Reprun, Nadejda"]
[Black "Efroimski, Marsel"]
[Result "0-1"]
[ECO "B45"]
[WhiteElo "1979"]
[BlackElo "2470"]
[Annotator "TA"]
[PlyCount "72"]
[EventDate "2022.12.05"]
[EventType "tourn"]
[EventCountry "ISR"]
[SourceTitle "playchess.com"]
[Source "ChessBase"]
[SourceQuality "1"]
[TimeControl "40/5400+30:1800+30"]

{[%evp 11,72,27,27,27,28,0,0,-8,8,-41,-14,-45,-30,-32,-35,-91,-114,-116,-107,-140,-83,-60,-65,-110,-104,-140,-132,-131,-133,-140,-130,-264,-223,-228,-230,-265,-247,-378,-378,-378,-378,-366,-350,-378,-378,-378,-378,-378,-375,-378,-378,-396,-371,-479,-425,-891,-852,-891,-891,-891,-890,-970,-947]} 1. e4 {[%emt 0:00:03]} c5 {[%emt 0:00:03]} 2. Nf3 {[%emt 0:00:03]} Nc6 {[%emt 0:00:04]} 3. d4 {[%emt 0:00:04]} cxd4 {[%emt 0:00:03]} 4. Nxd4 {[%emt 0:00:05]} Nf6 {[%emt 0:00:02]} 5. Nc3 {[%emt 0:00:17]} e6 {[%emt 0:00:04]} 6. Ndb5 {[%emt 0:00:56]} Bc5 {[%emt 0:00:09]} 7. Nd6+ {[%emt 0:01:32] B45: Sicilian Four Knights.} Ke7 $1 {[%emt 0:00:10]} 8. Nxc8+ {[%emt 0:05:18]} (8. Bf4 {is interesting.} e5 9. Nf5+ Kf8 10. Bg5) 8... Rxc8 {[%emt 0:01:17]} 9. Be2 {[%emt 0:01:36] The position is equal.} (9. Bg5 $2 Qb6 10. f3 Bf2+ 11. Ke2 Bd4 $19) 9... Bb4 {[%emt 0:06:34]} 10. Qd3 {[%emt 0:11:05] [#]} (10. Bd3 $1 $11) 10... Ne5 $146 {[%emt 0:04:12]} (10... d5 $5 {[%cal Rd5d4]} 11. O-O dxe4 12. Nxe4 Qxd3 13. Bxd3 Ne5 $15) ({Predecessor:} 10... d5 11. exd5 Qxd5 12. Qg3 Ne4 13. Qh4+ g5 14. Bxg5+ Nxg5 15. Qxb4+ Nxb4 16. Nxd5+ exd5 {0-1 (23) Duarte,L (2330)-Hasangatin,R (2479) Chess.com INT 2020}) 11. Qg3 {[%emt 0:01:53]} (11. Qd4 {feels hotter.} Qa5 12. Bd2 d6 13. Nd5+) 11... Bxc3+ {[%emt 0:13:32]} (11... Nxe4 $2 12. Qh4+ (12. Qxe5 Nxc3 13. Bd2 Nd5 $11) 12... f6 13. Qxe4 $18) 12. bxc3 {[%emt 0:00:15]} Qa5 $36 {[%emt 0:00:26][%mdl 2048] Black has good play.} (12... Nxe4 $2 13. Qxe5 Qc7 14. Ba3+ (14. Qxe4 Qxc3+ 15. Bd2 Qxa1+ 16. Bd1 Qxa2 $14) 14... Kd8 15. Qxg7 (15. Qxe4 Qxc3+ 16. Kd1 Qxa1+ 17. Bc1 Qxa2 $11) 15... Qxc3+ 16. Qxc3 Nxc3 17. Bd3 $18) 13. Bd2 {[%emt 0:17:25]} (13. O-O $1 $15) 13... Nxe4 $17 {[%emt 0:07:11]} 14. Qh4+ {[%emt 0:00:11]} Nf6 {[%emt 0:00:07][%cal Oe5c4] Black is much more active. The white rooks are badly placed. Pair of Knights!} 15. O-O {[%emt 0:01:00] [#]} Ng6 {[%emt 0:03:57]} ({Black should try} 15... Nc4 $1 {[%mdl 512]} 16. Bxc4 Qa4) 16. Qd4 {[%emt 0:02:05]} Qc5 {[%emt 0:04:02]} (16... Qd5 {simplifies} 17. Qb4+ Qd6 18. Qxd6+ Kxd6 19. c4 Kc7) 17. Bd3 {[%emt 0:00:38]} Ne5 {[%emt 0:07:37]} 18. Qa4 {[%emt 0:05:50] [#]} Nd5 $1 {[%emt 0:06:17]} 19. Rab1 {[%emt 0:06:25] [#]} b6 $1 {[%emt 0:05:12]} ({Inferior is} 19... Nxc3 20. Bxc3 Qxc3 21. Rxb7 $17) 20. Rb5 {[%emt 0:14:52]} Qc6 {[%emt 0:01:23]} 21. Be4 {[%emt 0:03:35] This move loses the game for White.} (21. Qh4+ $17 f6 22. Rb3) 21... Nc4 {[%emt 0:10:39]} 22. Bxd5 {[%emt 0:07:47]} exd5 {[%emt 0:00:11]} 23. Re1+ {[%emt 0:01:31]} Kd8 {[%emt 0:01:04]} 24. Bf4 {[%emt 0:01:42]} (24. Be3 {was worth a try.}) 24... a6 $19 {[%emt 0:03:18][%cal Ba7a6,Ba6a5,Ba5a4][%mdl 32]} 25. Rb4 {[%emt 0:02:54]} ({Weaker is} 25. Qxa6 Ra8 $19) 25... Qxa4 {[%emt 0:00:16]} 26. Rxa4 {[%emt 0:00:01]} a5 {[%emt 0:00:08]} 27. Be3 {[%emt 0:01:20]} Kc7 {[%emt 0:00:36]} 28. Rb1 {[%emt 0:03:11]} Rb8 {[%emt 0:00:29] Hoping for ...b5.} 29. Rxc4+ {[%emt 0:01:14]} dxc4 {[%emt 0:00:04][%mdl 4096] Endgame KRR-KRB} 30. Rb5 {[%emt 0:00:17]} a4 {[%emt 0:03:13]} 31. Bd4 {[%emt 0:04:04]} f6 {[%emt 0:00:35]} 32. g4 {[%emt 0:00:05]} Rhe8 {[%emt 0:01:31] Black is clearly winning.} 33. g5 {[%emt 0:00:13]} (33. Be3 $142) 33... Re1+ {[%emt 0:01:31]} 34. Kg2 {[%emt 0:00:01]} Ra1 {[%emt 0:00:11]} 35. gxf6 {[%emt 0:00:43]} gxf6 {[%emt 0:00:34]} ({Worse is} 35... Rxa2 36. fxg7 Rg8 37. Rf5 $11) 36. Bxf6 {[%emt 0:00:03]} Rxa2 {[%emt 0:00:08] Weighted Error Value: White=0.47/Black=0.07 (flawless)} 0-1

[Event "Israeli Women Championship 2022"]
[Site "Yosiah Arad"]
[Date "2022.12.06"]
[Round "2.2"]
[White "Brusilovski, Lena"]
[Black "Shvayger, Yuliya"]
[Result "0-1"]
[ECO "B32"]
[WhiteElo "1800"]
[BlackElo "2350"]
[Annotator "TA"]
[PlyCount "80"]
[EventDate "2022.12.05"]
[EventType "tourn"]
[EventCountry "ISR"]
[SourceTitle "playchess.com"]
[Source "ChessBase"]
[SourceQuality "1"]
[TimeControl "40/5400+30:1800+30"]

{[%evp 9,80,0,0,-18,-17,-18,-8,-19,-6,-57,0,-40,-55,-49,-39,-47,-9,-8,-14,-22,-14,-12,-18,-29,-22,-44,-39,-47,0,0,14,0,13,0,0,4,9,-31,-24,-40,-16,-59,-40,-65,-66,-64,-62,-92,-86,-95,-100,-110,-66,-82,-80,-250,-239,-316,-295,-386,-379,-519,-522,-518,-502,-492,-476,-1254,-1150,-1316,-901,-1388,-728]} 1. e4 {[%emt 0:00:10]} c5 {[%emt 0:00:04]} 2. Nf3 {[%emt 0:04:00]} Nc6 {[%emt 0:02:30]} 3. d4 {[%emt 0:01:57]} cxd4 {[%emt 0:00:08]} 4. Nxd4 {[%emt 0:00:48]} e5 {[%emt 0:00:03]} 5. Nxc6 {[%emt 0:01:32]} bxc6 {[%emt 0:00:35]} 6. c4 {[%emt 0:01:19] B32: Sicilian: Löwenthal and Kalashnikov Variations.} Nf6 {[%emt 0:01:49]} 7. Bd3 {[%emt 0:03:33]} Bc5 {[%emt 0:03:01]} 8. O-O {[%emt 0:09:02] The position is equal.} d6 {[%emt 0:00:07]} 9. h3 {[%emt 0:03:24]} (9. Nc3 $11) 9... Be6 {[%emt 0:01:11] [#]} (9... g5 $15 10. Nd2 (10. Bxg5 Rg8 $15) 10... g4 11. hxg4 Bxg4) 10. Nd2 $146 {[%emt 0:02:52]} ({Predecessor:} 10. Nc3 a5 11. b3 O-O 12. Qc2 Qd7 13. Kh2 Bd4 14. f4 exf4 15. Bxf4 Nh5 16. Bd2 {0-1 (28) Jakubec,M (2004)-Harasta,M (1679) Slovakia 2017}) 10... a5 {[%emt 0:01:11]} 11. Nf3 {[%emt 0:01:26]} h6 {[%emt 0:00:25]} 12. Qe2 {[%emt 0:00:30]} Rb8 {[%emt 0:07:17]} 13. b3 {[%emt 0:01:37]} O-O {[%emt 0:10:00]} 14. Be3 {[%emt 0:02:04] [#] Strongly threatening Bxc5.} Nd7 {[%emt 0:00:04]} 15. Rfd1 {[%emt 0:02:16]} Qe7 {[%emt 0:03:17]} 16. Bxc5 {[%emt 0:02:20]} Nxc5 {[%emt 0:00:03]} 17. Rab1 {[%emt 0:00:07]} Rfd8 {[%emt 0:11:29]} 18. Bc2 {[%emt 0:01:13]} Qf6 {[%emt 0:08:12]} (18... Bc8 $15) 19. Rd2 $11 {[%emt 0:03:32]} g5 {[%emt 0:01:29]} 20. Ne1 {[%emt 0:02:06]} Bc8 {[%emt 0:01:36]} 21. Qf3 {[%emt 0:02:57]} Qe7 {[%emt 0:00:37]} 22. Qc3 {[%emt 0:01:04]} Qc7 {[%emt 0:05:24]} 23. Rbd1 {[%emt 0:00:58]} Ne6 {[%emt 0:00:33]} 24. Qg3 {[%emt 0:02:53]} f6 {[%emt 0:01:12]} 25. h4 {[%emt 0:00:58]} Kg7 {[%emt 0:00:51]} 26. Nf3 {[%emt 0:02:45][%cal Be1f3,Bf3h2,Bh2f1,Bf1e3,Be3d5][%mdl 32]} c5 {[%emt 0:02:45]} 27. Nh2 {[%emt 0:02:24]} Nd4 {[%emt 0:04:22]} 28. Nf1 {[%emt 0:01:06]} a4 {[%emt 0:01:20] Black is much more active.} 29. Ne3 {[%emt 0:01:23]} axb3 {[%emt 0:02:16]} 30. axb3 {[%emt 0:00:58]} Ra8 {[%emt 0:00:49]} (30... Nxb3 31. Nd5 Qb7 32. hxg5 hxg5 33. Rb1 Nxd2 34. Rxb7+ Rxb7 35. Qd3 $18) 31. Nd5 {[%emt 0:01:48]} Qf7 {[%emt 0:00:04]} 32. Rxd4 $2 {[%emt 0:01:39] Loses the game.} cxd4 $19 {[%emt 0:01:44]} (32... exd4 33. b4 cxb4 34. Qd3) 33. f4 {[%emt 0:00:40][%cal Rh4g5]} Qh5 {[%emt 0:13:36]} 34. fxe5 {[%emt 0:05:27]} fxe5 {[%emt 0:00:41]} (34... dxe5 $2 35. hxg5 Qxg5 36. Qxg5+ fxg5 37. Bd3 $19) 35. Rf1 {[%emt 0:00:51]} Rf8 {[%emt 0:01:37] Against Qf2. Black is clearly winning.} ({Not} 35... Qxh4 36. Qf3 $18) 36. Rxf8 {[%emt 0:05:17]} Kxf8 {[%emt 0:00:11]} 37. Qf2+ {[%emt 0:00:13]} Qf7 {[%emt 0:00:34]} 38. Qd2 {[%emt 0:00:09]} (38. Qe1 $142 Bb7 39. Nb6) 38... Ra1+ {[%emt 0:01:05]} ({Inferior is} 38... gxh4 39. Qxh6+ Qg7 40. Qxd6+ (40. Qxh4 $2 Be6 $19) 40... Kg8 41. Qd8+ Kh7 42. Qxh4+ Kg8 43. Qd8+ Kh7 44. Qh4+ Kg8 45. Qd8+ Kh7 46. Qh4+ $11) 39. Kh2 {[%emt 0:00:04]} Kg7 {[%emt 0:03:29] [#] ( -> ...Qf1)} ({Weaker is} 39... gxh4 40. Qxh6+ Qg7 41. Qxh4 $11) 40. Bd1 {[%emt 0:00:53]} gxh4 {[%emt 0:04:17] Weighted Error Value: White=0.79/Black=0.30} 0-1

[Event "Israeli Women Championship 2022"]
[Site "Yosiah Arad"]
[Date "2022.12.06"]
[Round "2.3"]
[White "Ovechkin, Lilia"]
[Black "Kochavi, Dana"]
[Result "1/2-1/2"]
[ECO "D00"]
[WhiteElo "1680"]
[BlackElo "1928"]
[Annotator "TA"]
[PlyCount "154"]
[EventDate "2022.12.05"]
[EventType "tourn"]
[EventCountry "ISR"]
[SourceTitle "playchess.com"]
[Source "ChessBase"]
[SourceQuality "1"]
[TimeControl "40/5400+30:1800+30"]

{[%evp 9,154,0,0,0,12,12,23,17,36,37,42,37,37,38,39,-51,-45,-68,-35,-77,-25,-50,-43,-105,-54,-55,-46,-61,-33,-71,-53,-51,-41,-46,-35,-60,-60,-57,-28,-38,-38,-55,-31,-38,-38,-53,-45,-130,-130,-130,-130,-130,-130,-130,-130,-133,-130,-130,-130,-130,-130,-156,-118,-118,-118,-112,-93,-93,-93,-93,-93,-93,-93,-93,-93,-157,-147,-144,-121,-121,-121,-121,-121,-111,-106,-106,-100,-103,-104,-117,-117,-117,-117,-222,-117,-117,-117,-117,-117,-117,-117,-125,-117,-117,-57,-52,-8,-8,-8,-39,-8,-54,0,0,0,0,0,0,0,0,0,0,0,0,8,0,0,0,0,0,0,0,0,-8,0,0,0,0,0,0,0,0,0,0,0,0,0]} 1. d4 {[%emt 0:00:33]} Nf6 {[%emt 0:00:05]} 2. Bg5 {[%emt 0:00:32]} d5 {[%emt 0:00:05]} 3. Nd2 {[%emt 0:02:16]} c5 {[%emt 0:00:28]} 4. e3 {[%emt 0:07:44]} cxd4 {[%emt 0:07:42]} 5. exd4 {[%emt 0:00:15]} Nc6 {[%emt 0:00:04]} 6. Ngf3 {[%emt 0:03:06] D00: 1 d4 d5: Unusual lines.} Bf5 {[%emt 0:01:09]} 7. c3 {[%emt 0:02:42]} e6 {[%emt 0:07:07]} 8. Nh4 {[%emt 0:19:22] White has an edge.} Bg6 {[%emt 0:00:25]} 9. Nxg6 {[%emt 0:01:15]} hxg6 {[%emt 0:00:08]} 10. Bd3 {[%emt 0:05:51]} Bd6 {[%emt 0:02:02] [#]} 11. Nf3 $146 {[%emt 0:06:59]} ({Predecessor:} 11. g3 Qc7 12. Qe2 O-O-O 13. Nf3 Kb8 14. O-O-O Rc8 15. Kb1 Nd7 16. h4 Na5 17. Rhe1 {0-1 (45) Rapport,R (2763)-Nihal,S (2650) Chess.com INT 2021}) 11... Qc7 {[%emt 0:02:24]} 12. Bxf6 {[%emt 0:16:37]} (12. Qe2 $14) 12... gxf6 $15 {[%emt 0:02:19]} 13. g3 {[%emt 0:01:46]} a6 {[%emt 0:02:28]} 14. O-O {[%emt 0:05:19]} O-O {[%emt 0:01:52]} (14... g5 $17) 15. Qc2 {[%emt 0:00:52]} Kg7 {[%emt 0:00:20]} 16. Nh4 {[%emt 0:00:34]} (16. Qd2 $15) 16... Rh8 {[%emt 0:02:03]} (16... g5 $1 $17 {[%cal Rg5h4]} 17. Nf3 Rh8) 17. f4 $1 {[%emt 0:01:33]} Rac8 {[%emt 0:09:04][%cal Oc6d4]} 18. Qf2 {[%emt 0:00:49]} f5 {[%emt 0:00:29]} 19. Rae1 {[%emt 0:01:14]} b5 {[%emt 0:01:02]} 20. a3 {[%emt 0:01:02]} Na5 {[%emt 0:02:24]} 21. Nf3 {[%emt 0:00:21]} Nc4 {[%emt 0:00:40]} 22. Ne5 {[%emt 0:00:48]} Be7 {[%emt 0:08:33]} 23. Qe2 {[%emt 0:01:34][%cal Oe5f7]} Nxe5 {[%emt 0:01:30]} (23... Bf6 {keeps more tension.} 24. h4 Nd6 25. Rf2 Ne4) 24. Qxe5+ {[%emt 0:01:17]} Qxe5 {[%emt 0:00:23]} 25. Rxe5 {[%emt 0:00:29]} Rc7 {[%emt 0:00:23]} (25... Bxa3 $5 26. bxa3 Rxc3 $15) 26. Rfe1 {[%emt 0:00:30]} Rb8 {[%emt 0:00:55]} 27. R5e2 {[%emt 0:01:11]} a5 {[%emt 0:00:32]} 28. Rc2 {[%emt 0:03:54]} (28. Kf2 $15) 28... b4 $17 {[%emt 0:01:09]} 29. axb4 {[%emt 0:00:16]} axb4 {[%emt 0:00:08]} 30. Rec1 {[%emt 0:00:45]} bxc3 {[%emt 0:00:15]} 31. bxc3 {[%emt 0:00:07]} Rb3 {[%emt 0:00:13] Inhibits c4.} 32. Kf2 {[%emt 0:02:55]} Ba3 {[%emt 0:00:10]} 33. Rd1 {[%emt 0:01:23]} Rcxc3 {[%emt 0:00:59]} 34. Rxc3 {[%emt 0:00:20]} Rxc3 {[%emt 0:00:07][%mdl 4096] Endgame KRB-KRB} 35. Ke2 {[%emt 0:00:41]} Rb3 {[%emt 0:02:55]} 36. Rb1 {[%emt 0:00:19] [#]} Bb2 $1 {[%emt 0:02:05]} 37. Bc2 {[%emt 0:01:12]} Rb4 {[%emt 0:00:04]} 38. Bd3 {[%emt 0:01:44]} Kf8 {[%emt 0:01:42]} 39. Kd2 {[%emt 0:00:15]} Rb6 {[%emt 0:00:06]} 40. Ke3 {[%emt 0:00:30]} Ke7 {[%emt 0:00:32]} 41. Bc2 {[%emt 0:31:21]} Rb4 {[%emt 0:30:33]} 42. Rd1 {[%emt 0:00:14]} (42. Ke2 $142) 42... Kd6 {[%emt 0:01:50]} 43. Rd3 {[%emt 0:01:36]} Kc6 {[%emt 0:01:23]} 44. Rd1 {[%emt 0:01:17]} Kb6 {[%emt 0:01:45]} 45. Rd3 {[%emt 0:00:44]} Kb5 {[%emt 0:05:14]} 46. Bd1 {[%emt 0:00:47]} Bc1+ {[%emt 0:00:57]} 47. Kf2 {[%emt 0:00:28]} Rb2+ {[%emt 0:00:22]} 48. Be2 {[%emt 0:00:06] Threatens to win with Rc3+.} Kb4 {[%emt 0:00:29] Prevents Rc3.} 49. Ke1 {[%emt 0:00:15]} Rb1 {[%emt 0:01:02]} 50. Kf2 {[%emt 0:00:23]} Bb2 {[%emt 0:01:16]} 51. Bd1 {[%emt 0:03:52] [#]} (51. h3 $17) 51... Bc3 {[%emt 0:01:15]} ({Better is} 51... Kc4 $1 $19 {[%cal Rc4d3]} 52. Be2 Bxd4+ 53. Kg2 Kc5) 52. Be2 {[%emt 0:00:56]} Rc1 {[%emt 0:02:34]} 53. Kf3 {[%emt 0:01:33]} Rh1 {[%emt 0:03:03]} 54. Kg2 {[%emt 0:00:39]} Ra1 {[%emt 0:00:08]} 55. Kf3 {[%emt 0:00:11]} Ra3 {[%emt 0:02:34]} 56. Kf2 {[%emt 0:00:49]} Bb2 {[%emt 0:01:40]} (56... Kb3 $17 57. Ke3 Ra8 58. Bd1+ Kc4) 57. Rxa3 $15 {[%emt 0:00:33]} Kxa3 {[%emt 0:00:13] KB-KB} 58. Ke3 {[%emt 0:00:04]} Kb4 {[%emt 0:00:25]} 59. Kd3 {[%emt 0:00:18]} Bc1 {[%emt 0:01:27]} 60. Bd1 {[%emt 0:00:16]} (60. h4 $11) 60... g5 {[%emt 0:01:11]} ({Black should try} 60... Kb5 $15) 61. fxg5 $11 {[%emt 0:00:35] The position is equal.} Bxg5 {[%emt 0:00:06]} 62. Bh5 {[%emt 0:00:18]} f6 {[%emt 0:03:09]} 63. Bf7 {[%emt 0:00:03]} e5 {[%emt 0:00:18]} 64. dxe5 {[%emt 0:02:02]} fxe5 {[%emt 0:00:09] ...Kc5 is the strong threat.} 65. Bxd5 {[%emt 0:00:06]} Kc5 {[%emt 0:00:28]} 66. Be6 {[%emt 0:00:16]} f4 {[%emt 0:00:07]} 67. gxf4 {[%emt 0:00:47]} Bxf4 {[%emt 0:00:07]} 68. h4 {[%emt 0:00:07]} Kd6 {[%emt 0:00:08]} 69. Bf7 $1 {[%emt 0:00:35]} Ke7 {[%emt 0:00:06]} 70. Bd5 {[%emt 0:00:13]} Kf6 {[%emt 0:00:07]} 71. Ke4 {[%emt 0:00:22]} Bg3 {[%emt 0:00:21]} 72. h5 {[%emt 0:00:10]} Bf4 {[%emt 0:00:03]} 73. Bc6 {[%emt 0:00:28]} Kg5 {[%emt 0:00:20]} 74. Be8 {[%emt 0:00:03]} Kh6 {[%emt 0:00:12]} 75. Kf5 {[%emt 0:00:09]} Bh2 {[%emt 0:00:11]} 76. Bg6 {[%emt 0:00:16]} Bf4 {[%emt 0:00:09]} 77. Be8 {[%emt 0:00:38]} Bg3 {[%emt 0:00:06] White happily takes the draw.   Weighted Error Value: White=0.15 (very precise) /Black=0.12 (very precise)} 1/2-1/2

[Event "Israeli Women Championship 2022"]
[Site "Yosiah Arad"]
[Date "2022.12.06"]
[Round "2.4"]
[White "Orian, Noga"]
[Black "Tashkinova, Sofiia"]
[Result "0-1"]
[ECO "E12"]
[WhiteElo "1947"]
[BlackElo "2006"]
[Annotator "TA"]
[PlyCount "140"]
[EventDate "2022.12.05"]
[EventType "tourn"]
[EventCountry "ISR"]
[SourceTitle "playchess.com"]
[Source "ChessBase"]
[SourceQuality "1"]
[TimeControl "40/5400+30:1800+30"]

{[%evp 20,140,0,0,9,0,0,-16,0,-17,-8,-19,23,-8,-6,-10,0,-44,-22,-144,-115,-97,-97,-77,-24,-43,-41,-54,-11,-10,-12,-12,-12,-29,-33,-38,-26,-22,-25,-29,-28,-56,-60,-53,-53,-56,0,0,0,0,0,0,14,9,7,0,0,0,0,5,25,18,22,0,62,0,0,-33,-33,-36,6,-147,-131,-600,-563,-746,-714,-664,-650,-503,-457,-1412,-1398,-29973,-29974,-29974,-29975,-29974,-29971,-29975,-29976,-29977,-29977,-29977,-29977,-29977,-29976,-29975,-29975,-29975,-29975,-29974,-29975,-29975,-29974,-29974,-29975,-29975,-29976,-29976,-29977,-29977,-29978,-29978,-29979,-29979,-29980,-29981,-29982,-29982,-29983,-29983,-29984]} 1. d4 {[%emt 0:00:10]} Nf6 {[%emt 0:00:13]} 2. Nf3 {[%emt 0:00:16]} e6 {[%emt 0:00:35]} 3. c4 {[%emt 0:01:27]} b6 {[%emt 0:00:39]} 4. a3 {[%emt 0:01:30]} Bb7 {[%emt 0:00:12]} 5. Nc3 {[%emt 0:00:06]} d5 {[%emt 0:00:31]} 6. cxd5 {[%emt 0:00:40]} Nxd5 {[%emt 0:00:15]} 7. Qc2 {[%emt 0:01:09]} Nxc3 {[%emt 0:01:17]} 8. bxc3 {[%emt 0:00:14]} Be7 {[%emt 0:01:22]} 9. e4 {[%emt 0:01:08]} O-O {[%emt 0:02:10]} 10. Bd3 {[%emt 0:00:28]} c5 {[%emt 0:01:17]} 11. O-O {[%emt 0:00:06][%cal Od4d5]} h6 {[%emt 0:04:32] Against d5. E12: Queen's Indian: Unusual White 4th moves, 4 a3, 4 Nc3 Bb7 5 a3 and 4 Nc3 Bb7 .} 12. Rd1 {[%emt 0:01:52][%cal Od4d5]} Qc7 {[%emt 0:04:08] Inhibits d5.} 13. d5 {[%emt 0:07:37]} c4 {[%emt 0:08:05] The position is equal.} 14. Bf1 {[%emt 0:00:34]} (14. Be2 $5 {[%cal Rd5e6]}) 14... exd5 {[%emt 0:02:00]} 15. exd5 {[%emt 0:00:03] [#]} Bf6 $146 {[%emt 0:00:54] Against Rd4} ({Predecessor:} 15... Nd7 16. Rd4 Bc5 17. Bf4 Qc8 18. Rd2 Rd8 19. Re1 Nf6 20. Be5 Nxd5 21. Bxc4 Ne7 22. Rxd8+ Qxd8 23. Bg3 Bxf3 {½-½ (23) Tassone,R (2039)-Maguire,G ICCF email 2014}) 16. Be3 {[%emt 0:05:42]} Nd7 {[%emt 0:07:56]} 17. Qf5 {[%emt 0:10:43]} Rfd8 {[%emt 0:06:45]} ({Don't play} 17... Bxc3 18. Rac1 Bb2 19. d6 $16 (19. Rxc4 Qd8 $16)) 18. Bf4 {[%emt 0:36:16] Against Ne5} (18. Rac1 {simplifies} Nf8 19. g3 Qd7 20. Qxd7 Rxd7 21. Bxc4 Rad8 22. Bb3) 18... Qc5 {[%emt 0:03:14]} (18... Qc8 $5) 19. Qg4 {[%emt 0:02:10]} (19. Be3 $11 {remains equal.} Qa5 20. Bxc4) 19... Bxd5 {[%emt 0:06:53]} 20. Bxh6 {[%emt 0:02:01]} Be6 {[%emt 0:08:12]} 21. Qg3 {[%emt 0:00:12]} Ne5 {[%emt 0:05:01]} (21... Bxc3 $17 22. Be3 Qf8) 22. Be3 {[%emt 0:09:32]} Nxf3+ {[%emt 0:02:24]} 23. Qxf3 {[%emt 0:00:02]} Qa5 {[%emt 0:01:05]} (23... Qf8 $5 {[%cal Rf6c3]} 24. Rdc1 Qe7 $15) 24. Bd4 {[%emt 0:00:16]} Bxd4 {[%emt 0:00:52]} 25. Rxd4 {[%emt 0:00:06]} Rac8 {[%emt 0:01:34] Hoping for ...Rxd4.} 26. Qe3 {[%emt 0:06:24]} (26. Rh4 {seems wilder.} Qg5 27. g3 Bd5 28. Qe2) 26... Rxd4 {[%emt 0:03:40]} 27. Qxd4 {[%emt 0:00:02]} Qc5 {[%emt 0:01:19] White must now prevent ...Qxd4.} 28. Qd2 {[%emt 0:00:49]} Qe7 {[%emt 0:01:26]} 29. a4 {[%emt 0:02:01]} Rc5 {[%emt 0:02:48]} 30. Rb1 {[%emt 0:03:24]} Qd7 {[%emt 0:01:56]} 31. Qxd7 {[%emt 0:03:34]} Bxd7 $15 {[%emt 0:00:05][%mdl 4096] Endgame KRB-KRB} 32. Rb4 {[%emt 0:00:35]} b5 {[%emt 0:05:41]} (32... Kf8 $15) 33. axb5 $11 {[%emt 0:00:09]} Bxb5 {[%emt 0:00:08]} 34. f4 {[%emt 0:00:09]} a5 {[%emt 0:01:47]} 35. Rb2 {[%emt 0:00:04]} Ba4 {[%emt 0:00:46]} 36. Rb8+ {[%emt 0:01:42]} Kh7 {[%emt 0:00:13]} 37. Kf2 {[%emt 0:00:27]} Bb3 {[%emt 0:04:28]} 38. Bd3+ {[%emt 0:00:45]} g6 {[%emt 0:00:48] [#] Strongly threatening ...a4.} 39. Be4 {[%emt 0:02:22]} a4 {[%emt 0:01:06] ...Ra5 is the strong threat.} 40. Ra8 {[%emt 0:00:10] Against Ra5} Rc7 {[%emt 0:01:10] Inhibits Ra7.} 41. Ke3 {[%emt 0:31:53]} Kg7 {[%emt 0:37:50]} ({Black should play} 41... f5 $11 42. Bf3 Rd7) 42. Ra5 {[%emt 0:00:00]} (42. Kd4 $14) 42... Rd7 $1 {[%emt 0:00:00]} 43. Bc6 {[%emt 0:00:00]} Rd3+ {[%emt 0:00:00]} 44. Ke4 {[%emt 0:00:00]} Bd1 {[%emt 0:00:00]} 45. h3 $2 {[%emt 0:00:00] Prevents Bg4.} (45. Ra7 $11) 45... Rxc3 $17 {[%emt 0:00:00] aiming for ...Rg3.} 46. Bxa4 $2 {[%emt 0:00:00][%mdl 8192] This move loses the game for White.} (46. Bd5 $17) 46... Ra3 $19 {[%emt 0:00:00]} 47. Bxd1 {[%emt 0:00:00]} Rxa5 {[%emt 0:00:00] KR-KB} 48. Kd4 {[%emt 0:00:00]} Ra2 {[%emt 0:00:00] [#] ( -> ...Rd2+)} 49. Bf3 {[%emt 0:00:00]} Kf6 {[%emt 0:00:00][%cal Oc4c3] And now ...c3! would win.} 50. Kxc4 {[%emt 0:00:00]} (50. Be4 $142 Re2 51. Bd5) 50... Kf5 {[%emt 0:00:00]} 51. Kd5 {[%emt 0:00:00]} Kxf4 {[%emt 0:00:00] Black mates.} 52. Kd6 {[%emt 0:00:00]} f5 {[%emt 0:00:00]} 53. Ke6 {[%emt 0:01:17]} Ra6+ {[%emt 0:00:00]} 54. Kd5 {[%emt 0:00:57]} g5 {[%emt 0:00:00]} 55. Kc5 {[%emt 0:01:14]} Re6 {[%emt 0:00:00]} 56. Kd4 {[%emt 0:01:56]} Rd6+ {[%emt 0:00:00]} 57. Kc3 {[%emt 0:00:10]} Ke3 {[%emt 0:00:00]} 58. Kc4 {[%emt 0:00:13]} Rd4+ {[%emt 0:00:00]} 59. Kc3 {[%emt 0:01:29]} Rf4 {[%emt 0:00:00]} 60. Bb7 {[%emt 0:00:20]} Rf2 {[%emt 0:00:00]} 61. Bc8 {[%emt 0:01:09]} f4 {[%emt 0:00:00]} 62. Bb7 {[%emt 0:00:17]} Ra2 {[%emt 0:00:00]} 63. Kb3 {[%emt 0:00:47]} Ra7 {[%emt 0:00:00]} 64. Bf3 {[%emt 0:00:13]} Rc7 {[%emt 0:00:00]} 65. Kb2 {[%emt 0:00:48]} Kf2 {[%emt 0:00:00]} 66. Ba8 {[%emt 0:00:40]} Kg3 {[%emt 0:00:00]} 67. Bf3 {[%emt 0:00:16]} Re7 {[%emt 0:00:00]} 68. Kc1 {[%emt 0:00:46]} Re3 {[%emt 0:00:00]} 69. Ba8 {[%emt 0:00:19]} Re2 {[%emt 0:00:00]} 70. Kd1 {[%emt 0:00:26]} Rxg2 {[%emt 0:00:00] Weighted Error Value: White=0.51/Black=0.10 (very precise)} 0-1